fUST/lending_fUST_20250901
["ID","MTS","AMOUNT","RATE_DAILY","PERIOD"]
[382532638,1756659039510,-480.0,0.00017251,2]
[382532640,1756659039521,-480.0,0.00017251,2]
[382532642,1756659039531,-480.0,0.00017251,2]
[382532644,1756659039540,-480.0,0.00017251,2]
[382532646,1756659039549,-480.88289953,0.00017251,2]
[382532648,1756659039559,-480.0,0.00017251,2]
[382532650,1756659039568,-839.11,0.00017251,2]
[382532652,1756659039578,-480.0,0.00017251,2]
[382532654,1756659039587,-648.71,0.00017251,2]
[382532656,1756659039596,-487.07,0.00017251,2]
[382532658,1756659039605,-480.0,0.00017251,2]
[382532660,1756659039615,-663.73,0.00017251,2]
[382532662,1756659039624,-1115.72,0.00017251,2]
[382532664,1756659039634,-480.0,0.00017251,2]
[382532666,1756659039643,-779.22,0.00017251,2]
[382532668,1756659039652,-480.0,0.00017251,2]
[382532670,1756659039662,-1375.71,0.00017251,2]
[382532672,1756659039671,-480.0,0.00017251,2]
[382532674,1756659039681,-480.0,0.00017251,2]
[382532676,1756659039691,-987.25,0.00017251,2]
[382532678,1756659039700,-480.0,0.00017251,2]
[382532680,1756659039710,-480.0,0.00017251,2]
[382532682,1756659039719,-480.0,0.00017251,2]
[382532684,1756659039728,-480.66036303,0.00017251,2]
[382532686,1756659039737,-480.0,0.00017251,2]
[382532688,1756659039747,-480.0,0.00017251,2]
[382532690,1756659039756,-696.7,0.00017251,2]
[382532692,1756659039766,-480.0,0.00017251,2]
[382532694,1756659039776,-653.96,0.00017251,2]
[382532696,1756659039785,-489.6535696,0.00017251,2]
[382532699,1756659039795,-480.0,0.00017251,2]
[382532701,1756659039804,-481.78518685,0.00017251,2]
[382532703,1756659039814,-480.0,0.00017251,2]
[382532704,1756659039824,-480.0,0.00017251,2]
[382532706,1756659039833,-1000.0,0.00017251,2]
[382532708,1756659039845,-887.24,0.00017251,2]
[382532710,1756659039856,-480.0,0.00017251,2]
[382532712,1756659039865,-480.0,0.00017251,2]
[382532714,1756659039874,-565.60466085,0.00017251,2]
[382532716,1756659039884,-510.7510522,0.00017251,2]
[382532718,1756659039894,-553.78,0.00017251,2]
[382532720,1756659039904,-480.0,0.00017251,2]
[382532722,1756659039914,-480.00000001,0.00017251,2]
[382532724,1756659039923,-480.0,0.00017251,2]
[382532726,1756659039932,-480.0,0.00017251,2]
[382532728,1756659039942,-480.0,0.00017251,2]
[382532730,1756659039951,-807.57,0.00017251,2]
[382532732,1756659039960,-518.21017361,0.00017251,2]
[382532734,1756659039970,-480.0,0.00017251,2]
[382532736,1756659039979,-1988.84,0.00017251,2]
[382532738,1756659039989,-963.8,0.00017251,2]
[382532740,1756659040003,-480.96,0.00017251,2]
[382532742,1756659040012,-480.0,0.00017251,2]
[382532744,1756659040022,-410.49221079,0.00017251,2]
[382532762,1756659040175,-480.0,0.00017251,2]
[382532765,1756659040213,-1698.69,0.00017251,2]
[382532767,1756659040223,-480.0,0.00017251,2]
[382532769,1756659040233,-480.0,0.00017251,2]
[382532771,1756659040243,-1182.42,0.00017251,2]
[382532773,1756659040253,-500.0,0.00017251,2]
[382532775,1756659040263,-480.0,0.00017251,2]
[382532777,1756659040273,-480.0,0.00017251,2]
[382532780,1756659040286,-480.0,0.00017251,2]
[382532782,1756659040296,-480.0,0.00017251,2]
[382532783,1756659040305,-480.0,0.00017251,2]
[382532784,1756659040315,-480.0,0.00017251,2]
[382532785,1756659040325,-480.0,0.00017251,2]
[382532786,1756659040335,-524.45,0.00017251,2]
[382532787,1756659040345,-522.28,0.00017251,2]
[382532788,1756659040354,-480.0,0.00017251,2]
[382532789,1756659040364,-480.0,0.00017251,2]
[382532790,1756659040374,-549.9,0.00017251,2]
[382532791,1756659040384,-480.0,0.00017251,2]
[382532792,1756659040394,-618.67,0.00017251,2]
[382532793,1756659040403,-510.09,0.00017251,2]
[382532794,1756659040412,-345.62403069,0.00017251,2]
[382532795,1756659040422,-682.3,0.00017251,2]
[382532796,1756659040431,-480.0,0.00017251,2]
[382532797,1756659040441,-593.76,0.00017251,2]
[382532798,1756659040450,-480.0,0.00017251,2]
[382532799,1756659040461,-480.0,0.00017251,2]
[382532800,1756659040470,-480.0,0.00017251,2]
[382532801,1756659040480,-480.0,0.00017251,2]
[382532802,1756659040489,-480.0,0.00017251,2]
[382532803,1756659040498,-755.44,0.00017251,2]
[382532804,1756659040508,-1379.26,0.00017251,2]
[382532805,1756659040518,-480.0,0.00017251,2]
[382532806,1756659040528,-550.04,0.00017251,2]
[382532807,1756659040538,-1295.54,0.00017251,2]
[382532808,1756659040547,-526.08976141,0.00017251,2]
[382532809,1756659040557,-779.48,0.00017251,2]
[382532810,1756659040567,-480.0,0.00017251,2]
[382532811,1756659040577,-480.0,0.00017251,2]
[382532812,1756659040587,-480.0,0.00017251,2]
[382532813,1756659040597,-480.0,0.00017251,2]
[382532814,1756659040607,-480.0,0.00017251,2]
[382532815,1756659040617,-480.0,0.00017251,2]
[382532816,1756659040627,-297.60048262,0.00017251,2]
[382532817,1756659040637,-480.0,0.00017251,2]
[382532818,1756659040646,-913.44,0.00017251,2]
[382532819,1756659040656,-480.0,0.00017251,2]
[382532820,1756659040666,-557.47,0.00017251,2]
[382532821,1756659040676,-1062.58,0.00017251,2]
[382532822,1756659040685,-480.0,0.00017251,2]
[382532823,1756659040695,-664.7,0.00017251,2]
[382532824,1756659040704,-480.0,0.00017251,2]
[382532825,1756659040714,-480.0,0.00017251,2]
[382532826,1756659040723,-480.0,0.00017251,2]
[382532828,1756659040738,-280.60287008,0.00017251,2]
[382532829,1756659040749,-160.0,0.00017251,2]
[382532831,1756659040758,-500.0,0.00017252,2]
[382532833,1756659040767,-500.0,0.00017253,2]
[382532835,1756659040776,-500.0,0.00017253,2]
[382532837,1756659040785,-151.61079302,0.00017253,2]
[382532839,1756659040794,-480.0,0.00017254,2]
[382532841,1756659040803,-480.0,0.00017254,2]
[382532843,1756659040813,-480.0,0.00017254,2]
[382532845,1756659040822,-480.0,0.00017254,2]
[382532847,1756659040831,-1208.02,0.00017254,2]
[382532849,1756659040841,-480.0,0.00017254,2]
[382532851,1756659040850,-480.0,0.00017254,2]
[382532853,1756659040860,-480.0,0.00017254,2]
[382532855,1756659040870,-480.0,0.00017254,2]
[382532857,1756659040879,-653.05,0.00017254,2]
[382532859,1756659040889,-508.74794958,0.00017254,2]
[382532861,1756659040898,-480.0,0.00017254,2]
[382532863,1756659040908,-480.0,0.00017254,2]
[382532865,1756659040919,-480.0,0.00017254,2]
[382532867,1756659040928,-480.0,0.00017254,2]
[382532869,1756659040938,-480.0,0.00017254,2]
[382532871,1756659040947,-480.0,0.00017254,2]
[382532873,1756659040957,-548.86,0.00017254,2]
[382532875,1756659040966,-480.0,0.00017254,2]
[382532877,1756659040976,-480.0,0.00017254,2]
[382532879,1756659040985,-480.0,0.00017254,2]
[382532881,1756659040996,-480.0,0.00017254,2]
[382532883,1756659041005,-480.0,0.00017254,2]
[382532885,1756659041014,-480.0,0.00017254,2]
[382532887,1756659041023,-704.93,0.00017254,2]
[382532889,1756659041034,-480.0,0.00017254,2]
[382532891,1756659041044,-480.0,0.00017254,2]
[382532893,1756659041053,-554.81,0.00017254,2]
[382532895,1756659041062,-480.0,0.00017254,2]
[382532897,1756659041072,-480.0,0.00017254,2]
[382532899,1756659041081,-480.0,0.00017254,2]
[382532901,1756659041091,-913.52,0.00017254,2]
[382532903,1756659041101,-480.0,0.00017254,2]
[382532905,1756659041111,-489.19,0.00017254,2]
[382532907,1756659041120,-480.0,0.00017254,2]
[382532909,1756659041130,-610.9,0.00017254,2]
[382532911,1756659041139,-480.0,0.00017254,2]
[382532913,1756659041150,-480.0,0.00017254,2]
[382532915,1756659041159,-762.93,0.00017254,2]
[382532917,1756659041169,-530.97,0.00017254,2]
[382532919,1756659041178,-480.0,0.00017254,2]
[382532921,1756659041187,-480.0,0.00017254,2]
[382532923,1756659041197,-500.0,0.00017255,2]
[382532925,1756659041207,-482.59720954,0.00017258,2]
[382532927,1756659041217,-500.0,0.00017258,2]
[382532929,1756659041226,-585.91,0.00017258,2]
[382532931,1756659041236,-4038.37,0.00017258,2]
[382532933,1756659041246,-2456.42,0.00017258,2]
[382532935,1756659041255,-509.24,0.00017258,2]
[382532936,1756659041265,-1226.54,0.00017258,2]
[382532938,1756659041275,-793.22,0.00017258,2]
[382532940,1756659041289,-1549.82,0.00017258,2]
[382532942,1756659041299,-719.76,0.00017258,2]
[382532944,1756659041308,-500.0,0.00017261,2]
[382532946,1756659041318,-168.0,0.00017276,2]
[382532948,1756659041328,-1996.65471973,0.00017288,2]
[382532950,1756659041338,-151.0,0.000173,2]
[382532952,1756659041348,-151.0,0.000173,2]
[382532954,1756659041357,-151.0,0.000173,2]
[382532956,1756659041367,-151.0,0.000173,2]
[382532958,1756659041376,-168.0,0.00017354,2]
[382532960,1756659041385,-4484.0,0.00017355,2]
[382532962,1756659041394,-1996.65471973,0.00017357,2]
[382532964,1756659041404,-151.0,0.000174,2]
[382532966,1756659041414,-151.0,0.000174,2]
[382532968,1756659041423,-151.0,0.000174,2]
[382532970,1756659041435,-1500.0,0.00017423,2]
[382532972,1756659041445,-1996.65471973,0.00017425,2]
[382532974,1756659041455,-29145.38393108,0.00017436,2]
[382532976,1756659041464,-190.0,0.0001747,2]
[382532978,1756659041474,-151.0,0.000175,2]
[382532980,1756659041483,-151.0,0.000175,2]
[382532982,1756659041493,-151.0,0.000175,2]
[382532984,1756659041502,-500.0,0.00017514,2]
[382532986,1756659041512,-500.0,0.00017514,2]
[382532988,1756659041523,-500.0,0.00017523,2]
[382532990,1756659041533,-500.0,0.00017523,2]
[382532992,1756659041542,-2655.62,0.00017523,2]
[382532994,1756659041551,-2655.62,0.00017523,2]
[382532996,1756659041561,-2655.62,0.00017523,2]
[382532998,1756659041570,-2655.62,0.00017523,2]
[382533000,1756659041580,-2655.62,0.00017523,2]
[382533002,1756659041589,-480.0,0.00017524,2]
[382533004,1756659041598,-480.0,0.00017524,2]
[382533006,1756659041608,-400.0,0.00017524,2]
[382533008,1756659041618,-480.0,0.00017524,2]
[382533010,1756659041627,-480.0,0.00017524,2]
[382533012,1756659041636,-480.0,0.00017524,2]
[382533014,1756659041645,-658.16,0.00017524,2]
[382533016,1756659041654,-400.0,0.00017524,2]
[382533018,1756659041664,-578.71,0.00017524,2]
[382533020,1756659041673,-500.0,0.00017524,2]
[382533022,1756659041682,-500.0,0.00017524,2]
[382533024,1756659041692,-500.0,0.00017524,2]
[382533026,1756659041700,-500.0,0.00017524,2]
[382533028,1756659041710,-500.0,0.00017524,2]
[382533030,1756659041719,-500.0,0.00017524,2]
[382533032,1756659041728,-500.0,0.00017524,2]
[382533034,1756659041738,-500.0,0.00017524,2]
[382533036,1756659041747,-1772.12,0.00017524,2]
[382533038,1756659041756,-991.87,0.00017524,2]
[382533040,1756659041767,-1223.35,0.00017524,2]
[382533041,1756659041775,-1263.34,0.00017524,2]
[382533043,1756659041785,-999.32,0.00017524,2]
[382533045,1756659041794,-596.34,0.00017524,2]
[382533047,1756659041804,-570.43,0.00017524,2]
[382533049,1756659041813,-1219.86,0.00017524,2]
[382533051,1756659041823,-480.0,0.00017524,2]
[382533053,1756659041832,-493.03,0.00017524,2]
[382533055,1756659041841,-480.0,0.00017524,2]
[382533057,1756659041854,-726.34,0.00017524,2]
[382533059,1756659041863,-656.23,0.00017524,2]
[382533061,1756659041872,-480.0,0.00017524,2]
[382533063,1756659041881,-902.06,0.00017524,2]
[382533065,1756659041893,-488.15,0.00017524,2]
[382533067,1756659041903,-480.0,0.00017524,2]
[382533069,1756659041911,-480.0,0.00017524,2]
[382533071,1756659041922,-480.0,0.00017524,2]
[382533073,1756659041932,-1094.1,0.00017524,2]
[382533076,1756659041941,-724.91,0.00017524,2]
[382533077,1756659041950,-734.1,0.00017524,2]
[382533079,1756659041960,-480.0,0.00017524,2]
[382533081,1756659041970,-480.0,0.00017524,2]
[382533083,1756659041979,-480.0,0.00017524,2]
[382533085,1756659041989,-480.0,0.00017524,2]
[382533087,1756659041999,-592.03,0.00017524,2]
[382533090,1756659042010,-1526.65,0.00017524,2]
[382533091,1756659042019,-480.0,0.00017524,2]
[382533093,1756659042028,-635.15,0.00017524,2]
[382533095,1756659042037,-480.0,0.00017524,2]
[382533097,1756659042047,-1595.39,0.00017524,2]
[382533099,1756659042057,-785.27,0.00017524,2]
[382533101,1756659042067,-480.0,0.00017524,2]
[382533103,1756659042077,-746.61,0.00017524,2]
[382533105,1756659042086,-480.0,0.00017524,2]
[382533107,1756659042096,-1249.36,0.00017524,2]
[382533109,1756659042105,-808.76,0.00017524,2]
[382533111,1756659042114,-1205.0,0.00017524,2]
[382533113,1756659042124,-480.0,0.00017524,2]
[382533115,1756659042135,-480.0,0.00017524,2]
[382533117,1756659042144,-487.67,0.00017524,2]
[382533119,1756659042153,-480.0,0.00017524,2]
[382533121,1756659042163,-799.97,0.00017524,2]
[382533123,1756659042172,-480.0,0.00017524,2]
[382533125,1756659042182,-1064.12,0.00017524,2]
[382533127,1756659042192,-594.27,0.00017524,2]
[382533129,1756659042202,-1311.31,0.00017524,2]
[382533131,1756659042212,-480.0,0.00017524,2]
[382533133,1756659042221,-480.0,0.00017524,2]
[382533135,1756659042231,-974.03,0.00017524,2]
[382533137,1756659042241,-480.0,0.00017524,2]
[382533139,1756659042250,-563.46,0.00017524,2]
[382533141,1756659042260,-1291.38,0.00017524,2]
[382533143,1756659042269,-972.17,0.00017524,2]
[382533145,1756659042280,-1286.62,0.00017524,2]
[382533147,1756659042290,-480.0,0.00017524,2]
[382533149,1756659042301,-480.0,0.00017524,2]
[382533151,1756659042312,-480.0,0.00017524,2]
[382533153,1756659042321,-491.87,0.00017524,2]
[382533154,1756659042331,-480.0,0.00017524,2]
[382533156,1756659042343,-646.93,0.00017524,2]
[382533158,1756659042353,-534.7,0.00017524,2]
[382533161,1756659042363,-674.34,0.00017524,2]
[382533162,1756659042373,-480.0,0.00017524,2]
[382533164,1756659042383,-609.02,0.00017524,2]
[382533166,1756659042392,-7296.12,0.00017524,2]
[382533168,1756659042401,-487.08,0.00017524,2]
[382533170,1756659042411,-606.71,0.00017524,2]
[382533172,1756659042420,-892.26,0.00017524,2]
[382533174,1756659042430,-539.51,0.00017524,2]
[382533176,1756659042440,-480.0,0.00017524,2]
[382533178,1756659042449,-480.0,0.00017524,2]
[382533180,1756659042459,-480.0,0.00017524,2]
[382533182,1756659042469,-697.89,0.00017524,2]
[382533184,1756659042478,-480.0,0.00017524,2]
[382533186,1756659042488,-4403.45,0.00017524,2]
[382533188,1756659042497,-1129.95,0.00017524,2]
[382533190,1756659042507,-1502.2,0.00017524,2]
[382533192,1756659042516,-480.0,0.00017524,2]
[382533194,1756659042525,-480.0,0.00017524,2]
[382533196,1756659042534,-480.0,0.00017524,2]
[382533198,1756659042543,-480.0,0.00017524,2]
[382533200,1756659042553,-480.0,0.00017524,2]
[382533202,1756659042562,-641.62,0.00017524,2]
[382533204,1756659042571,-699.68,0.00017524,2]
[382533206,1756659042580,-894.98,0.00017524,2]
[382533208,1756659042589,-480.0,0.00017524,2]
[382533209,1756659042599,-1490.82,0.00017524,2]
[382533212,1756659042609,-1427.93,0.00017524,2]
[382533214,1756659042621,-553.1,0.00017524,2]
[382533216,1756659042631,-480.0,0.00017524,2]
[382533218,1756659042640,-808.96,0.00017524,2]
[382533220,1756659042649,-2669.24,0.00017524,2]
[382533222,1756659042660,-1075.84,0.00017524,2]
[382533225,1756659042670,-480.0,0.00017524,2]
[382533228,1756659042680,-480.0,0.00017524,2]
[382533231,1756659042689,-872.18,0.00017524,2]
[382533233,1756659042699,-480.0,0.00017524,2]
[382533235,1756659042708,-500.0,0.00017524,2]
[382533237,1756659042717,-500.0,0.00017524,2]
[382533239,1756659042726,-197.59145903,0.00017524,2]
[382533240,1756659042735,-480.0,0.00017524,2]
[382533243,1756659042746,-480.0,0.00017524,2]
[382533245,1756659042755,-1035.54,0.00017524,2]
[382533249,1756659042764,-480.0,0.00017524,2]
[382533251,1756659042773,-684.5,0.00017524,2]
[382533253,1756659042783,-649.67,0.00017524,2]
[382533255,1756659042793,-480.0,0.00017524,2]
[382533257,1756659042802,-510.6,0.00017524,2]
[382533261,1756659042817,-1160.87,0.00017524,2]
[382533263,1756659042826,-728.63,0.00017524,2]
[382533265,1756659042836,-480.0,0.00017524,2]
[382533267,1756659042845,-703.71,0.00017524,2]
[382533269,1756659042854,-2655.62,0.00017524,2]
[382533271,1756659042864,-2655.62,0.00017524,2]
[382533273,1756659042873,-2655.62,0.00017524,2]
[382533275,1756659042883,-2655.62,0.00017524,2]
[382533277,1756659042892,-2655.62,0.00017524,2]
[382533279,1756659042902,-2655.62,0.00017524,2]
[382533281,1756659042911,-2655.62,0.00017524,2]
[382533283,1756659042921,-2655.62,0.00017524,2]
[382533285,1756659042930,-1192.27,0.00017524,2]
[382533287,1756659042940,-2321.06,0.00017524,2]
[382533289,1756659042950,-601.2,0.00017524,2]
[382533291,1756659042960,-1549.31,0.00017524,2]
[382533293,1756659042969,-480.0,0.00017524,2]
[382533295,1756659042979,-1422.9,0.00017524,2]
[382533297,1756659042988,-656.06,0.00017524,2]
[382533299,1756659042998,-480.0,0.00017524,2]
[382533301,1756659043008,-525.66,0.00017524,2]
[382533303,1756659043019,-201.64979696,0.00017524,2]
[382533305,1756659043028,-480.0,0.00017524,2]
[382533307,1756659043037,-751.19,0.00017524,2]
[382533309,1756659043047,-6095.61,0.00017524,2]
[382533311,1756659043056,-480.0,0.00017524,2]
[382533313,1756659043066,-1172.56,0.00017524,2]
[382533315,1756659043075,-484.23,0.00017524,2]
[382533317,1756659043085,-480.0,0.00017524,2]
[382533319,1756659043094,-480.0,0.00017524,2]
[382533321,1756659043104,-908.82,0.00017524,2]
[382533322,1756659043114,-1298.95,0.00017524,2]
[382533323,1756659043123,-532.97,0.00017524,2]
[382533324,1756659043133,-647.55,0.00017524,2]
[382533325,1756659043142,-1627.56,0.00017524,2]
[382533326,1756659043152,-902.2,0.00017524,2]
[382533327,1756659043161,-480.0,0.00017524,2]
[382533328,1756659043170,-480.0,0.00017524,2]
[382533329,1756659043180,-480.0,0.00017524,2]
[382533330,1756659043189,-2903.5,0.00017524,2]
[382533331,1756659043199,-504.59,0.00017524,2]
[382533333,1756659043210,-637.96,0.00017524,2]
[382533335,1756659043220,-480.0,0.00017524,2]
[382533337,1756659043229,-1434.82,0.00017524,2]
[382533339,1756659043239,-480.0,0.00017524,2]
[382533341,1756659043249,-1106.49,0.00017524,2]
[382533343,1756659043258,-863.64,0.00017524,2]
[382533345,1756659043269,-480.0,0.00017524,2]
[382533347,1756659043278,-480.0,0.00017524,2]
[382533349,1756659043288,-1237.46,0.00017524,2]
[382533351,1756659043297,-669.06,0.00017524,2]
[382533353,1756659043307,-238.65494765,0.00017524,2]
[382533355,1756659043317,-833.88,0.00017524,2]
[382533357,1756659043327,-480.0,0.00017524,2]
[382533359,1756659043337,-480.0,0.00017524,2]
[382533361,1756659043346,-899.37,0.00017524,2]
[382533363,1756659043356,-571.25,0.00017524,2]
[382533365,1756659043366,-3028.397421,0.00017525,2]
[382533367,1756659043376,-500.0,0.00017525,2]
[382533369,1756659043385,-480.0,0.00017525,2]
[382533371,1756659043395,-480.0,0.00017525,2]
[382533373,1756659043405,-480.0,0.00017525,2]
[382533375,1756659043415,-480.0,0.00017525,2]
[382533377,1756659043424,-480.0,0.00017525,2]
[382533379,1756659043434,-959.39,0.00017525,2]
[382533382,1756659043443,-480.0,0.00017525,2]
[382533384,1756659043454,-480.0,0.00017525,2]
[382533386,1756659043463,-302.5322839,0.00017525,2]
[382533388,1756659043473,-480.0,0.00017525,2]
[382533390,1756659043483,-480.0,0.00017525,2]
[382533392,1756659043492,-481.32029746,0.00017525,2]
[382533394,1756659043502,-480.0,0.00017525,2]
[382533396,1756659043512,-480.0,0.00017525,2]
[382533398,1756659043523,-480.0,0.00017525,2]
[382533400,1756659043533,-480.0,0.00017525,2]
[382533421,1756659043701,-480.0,0.00017525,2]
[382533424,1756659043734,-480.0,0.00017525,2]
[382533426,1756659043744,-480.0,0.00017525,2]
[382533428,1756659043754,-480.0,0.00017525,2]
[382533430,1756659043763,-480.0,0.00017525,2]
[382533432,1756659043773,-491.53,0.00017525,2]
[382533434,1756659043783,-487.56151785,0.00017525,2]
[382533436,1756659043792,-480.0,0.00017525,2]
[382533438,1756659043801,-480.0,0.00017525,2]
[382533440,1756659043811,-480.0,0.00017525,2]
[382533442,1756659043820,-480.0,0.00017525,2]
[382533444,1756659043829,-525.84,0.00017525,2]
[382533446,1756659043838,-480.0,0.00017525,2]
[382533448,1756659043852,-480.0,0.00017525,2]
[382533450,1756659043861,-480.0,0.00017525,2]
[382533452,1756659043871,-480.0,0.00017525,2]
[382533454,1756659043879,-480.0,0.00017525,2]
[382533456,1756659043890,-480.0,0.00017525,2]
[382533458,1756659043899,-480.0,0.00017525,2]
[382533460,1756659043908,-702.91,0.00017525,2]
[382533462,1756659043918,-482.76,0.00017525,2]
[382533464,1756659043929,-480.0,0.00017525,2]
[382533466,1756659043939,-480.0,0.00017525,2]
[382533468,1756659043948,-480.0,0.00017525,2]
[382533470,1756659043958,-480.0,0.00017525,2]
[382533472,1756659043968,-548.49,0.00017525,2]
[382533474,1756659043978,-591.87,0.00017525,2]
[382533476,1756659043988,-742.83,0.00017525,2]
[382533478,1756659043997,-480.0,0.00017525,2]
[382533480,1756659044007,-480.0,0.00017525,2]
[382533482,1756659044017,-480.0,0.00017525,2]
[382533484,1756659044026,-480.0,0.00017525,2]
[382533486,1756659044037,-554.89,0.00017525,2]
[382533488,1756659044047,-480.0,0.00017525,2]
[382533490,1756659044056,-480.0,0.00017525,2]
[382533492,1756659044066,-480.0,0.00017525,2]
[382533494,1756659044075,-1349.91,0.00017525,2]
[382533496,1756659044085,-480.0,0.00017525,2]
[382533498,1756659044095,-480.0,0.00017525,2]
[382533500,1756659044105,-480.0,0.00017525,2]
[382533502,1756659044116,-480.0,0.00017525,2]
[382533504,1756659044126,-480.0,0.00017525,2]
[382533506,1756659044136,-1120.3,0.00017525,2]
[382533508,1756659044146,-529.75,0.00017525,2]
[382533510,1756659044156,-296.00705477,0.00017525,2]
[382533513,1756659044167,-480.0,0.00017525,2]
[382533515,1756659044176,-480.0,0.00017525,2]
[382533517,1756659044185,-933.06,0.00017525,2]
[382533519,1756659044195,-480.0,0.00017525,2]
[382533521,1756659044204,-480.0,0.00017525,2]
[382533523,1756659044213,-480.0,0.00017525,2]
[382533524,1756659044223,-480.0,0.00017525,2]
[382533527,1756659044233,-480.0,0.00017525,2]
[382533529,1756659044242,-583.31,0.00017525,2]
[382533531,1756659044251,-480.0,0.00017525,2]
[382533533,1756659044261,-480.0,0.00017525,2]
[382533535,1756659044271,-480.0,0.00017525,2]
[382533536,1756659044280,-494.29,0.00017525,2]
[382533538,1756659044290,-480.0,0.00017525,2]
[382533540,1756659044300,-1120.54,0.00017525,2]
[382533542,1756659044309,-817.85,0.00017525,2]
[382533544,1756659044318,-500.0,0.00017525,2]
[382533546,1756659044328,-1474.41,0.00017525,2]
[382533548,1756659044337,-480.0,0.00017525,2]
[382533550,1756659044346,-480.0,0.00017525,2]
[382533552,1756659044356,-969.31,0.00017525,2]
[382533554,1756659044366,-480.0,0.00017525,2]
[382533556,1756659044375,-480.0,0.00017525,2]
[382533558,1756659044384,-480.0,0.00017525,2]
[382533560,1756659044394,-1100.39,0.00017525,2]
[382533562,1756659044403,-480.0,0.00017525,2]
[382533564,1756659044413,-480.0,0.00017525,2]
[382533566,1756659044423,-1287.82,0.00017525,2]
[382533568,1756659044432,-480.0,0.00017525,2]
[382533570,1756659044442,-480.0,0.00017525,2]
[382533572,1756659044451,-480.0,0.00017525,2]
[382533575,1756659044461,-480.0,0.00017525,2]
[382533577,1756659044471,-480.0,0.00017525,2]
[382533579,1756659044481,-480.0,0.00017525,2]
[382533580,1756659044490,-480.0,0.00017525,2]
[382533583,1756659044499,-480.0,0.00017525,2]
[382533584,1756659044509,-500.0,0.00017525,2]
[382533587,1756659044519,-500.0,0.00017525,2]
[382533589,1756659044528,-480.0,0.00017525,2]
[382533590,1756659044537,-1415.49,0.00017525,2]
[382533592,1756659044547,-480.0,0.00017525,2]
[382533594,1756659044556,-480.0,0.00017525,2]
[382533596,1756659044566,-512.52,0.00017525,2]
[382533598,1756659044576,-480.0,0.00017525,2]
[382533600,1756659044585,-480.0,0.00017525,2]
[382533602,1756659044595,-480.0,0.00017525,2]
[382533604,1756659044604,-480.0,0.00017525,2]
[382533606,1756659044613,-480.0,0.00017525,2]
[382533608,1756659044622,-480.0,0.00017525,2]
[382533610,1756659044631,-480.0,0.00017525,2]
[382533612,1756659044640,-686.57,0.00017525,2]
[382533614,1756659044649,-659.82,0.00017525,2]
[382533616,1756659044658,-890.58,0.00017525,2]
[382533618,1756659044667,-663.59,0.00017525,2]
[382533620,1756659044676,-585.21,0.00017525,2]
[382533621,1756659044685,-480.0,0.00017525,2]
[382533623,1756659044694,-1419.66,0.00017525,2]